Workbook

Sheet Gantt
Q1: =Show_from+Settings!$Q$5 -> 45505 | R1: =Q1+Days_per_cell -> 45506 | S1: 45507 | T1: 45508 | U1: 45509 | V1: 45510 | W1: 45511 | X1: 45512 | Y1: 45513 | Z1: 45514 | AA1: 45515 | AB1: 45516 | AC1: 45517 | AD1: 45518 | AE1: 45519 | AF1: 45520 | AG1: 45521 | AH1: 45522 | AI1: 45523 | AJ1: 45524 | AK1: 45525 | AL1: 45526 | AM1: 45527 | AN1: 45528 | AO1: 45529 | AP1: 45530 | AQ1: 45531 | AR1: 45532 | AS1: 45533 | AT1: 45534 | AU1: 45535
R2: =IF(YEAR(Q1)<>YEAR(R1),R1,"") ->  | S2: =IF(YEAR(R1)<>YEAR(S1),S1,"") -> 
C4: Project Name | D4: Olympic 2024
C5: Project Lead | D5: Template22
C6: Project Start Date | D6: =MIN(M10:M23) -> 2024-08-01 | Q6: =IF(YEAR(P1)<>YEAR(Q1),Q1,"") -> 2024-08-01
C7: Project Completion Date | D7: =MAX(N10:N23) -> 2024-09-01 | Q7: =IF(MONTH(P1)<>MONTH(Q1),Q1,"") -> 2024-08-01 | R7: =IF(MONTH(Q1)<>MONTH(R1),R1,"") -> 
E8: Duration | G8: Actual | H8: Status | K8: Dependency | M8: Duration | Q8: =LEFT(TEXT(Q1,"ddd"),1) -> T | R8: =LEFT(TEXT(R1,"ddd"),1) -> F | S8: S | T8: S | U8: M | V8: T | W8: W | X8: T | Y8: F | Z8: S | AA8: S | AB8: M | AC8: T | AD8: W | AE8: T | AF8: F | AG8: S | AH8: S | AI8: M | AJ8: T | AK8: W | AL8: T | AM8: F | AN8: S | AO8: S | AP8: M | AQ8: T | AR8: W | AS8: T | AT8: F | AU8: S
A9: Sr. # | B9: Type | C9: Task | D9: Resource | E9: Total | F9: Remai- ning | G9: Cost | H9: Done | I9: % Prog | J9: On Track | K9: D-Type | L9: Manual Date | M9: Start | N9: Finish | O9: Done Until | Q9: =Q1 -> 2024-08-01 | R9: 2024-08-02 | S9: 2024-08-03 | T9: 2024-08-04 | U9: 2024-08-05 | V9: 2024-08-06 | W9: 2024-08-07 | X9: 2024-08-08 | Y9: 2024-08-09 | Z9: 2024-08-10 | AA9: 2024-08-11 | AB9: 2024-08-12 | AC9: 2024-08-13 | AD9: 2024-08-14 | AE9: 2024-08-15 | AF9: 2024-08-16 | AG9: 2024-08-17 | AH9: 2024-08-18 | AI9: 2024-08-19 | AJ9: 2024-08-20 | AK9: 2024-08-21 | AL9: 2024-08-22 | AM9: 2024-08-23 | AN9: 2024-08-24 | AO9: 2024-08-25 | AP9: 2024-08-26 | AQ9: 2024-08-27 | AR9: 2024-08-28 | AS9: 2024-08-29 | AT9: 2024-08-30 | AU9: 2024-08-31
A10: =ROW()-ROW($A$9) -> 1 | B10: T | C10: Meet Client | D10: Person 1 | E10: 2 | F10: 1 | G10: $150 | H10: =IF(E10="","",E10-F10) -> 1 | I10: =IF(H10="","",H10/E10) -> 50% | J10: =IF(AND(GanttT[[#This Row],[Type]]="M",N10<Today,GanttT[[#This Row],[Remai- ning]]>0),Cross,IF(AND(O10<Today,GanttT[[#This Row],[Remai- ning]]>0),Cross,IF(C10<>"",Tick,""))) -> û | K10: Manual | L10: 2024-08-01 | M10: =IF(GanttT[[#This Row],[Type]]="M",GanttT[[#This Row],[Manual Date]],IF(K10="","",IF(K10="After",N9+1,IF(K10="Same",M9,L10)))) -> 2024-08-01 | N10: =IF(GanttT[[#This Row],[Type]]="M",GanttT[[#This Row],[Manual Date]],IF(K10="","",IF(Weekend_work="No",WORKDAY(M10,E10)-1,M10+E10-1))) -> 2024-08-04 | O10: =IF(GanttT[[#This Row],[Type]]="M","",IF(K10="","",IF(Weekend_work="No",WORKDAY(M10,H10)-1,M10+H10-1))) -> 2024-08-01 | Q10: =M_Stone ->  | R10: =M_Stone ->  | S10: =M_Stone ->  | T10: =M_Stone ->  | U10: =M_Stone ->  | V10: =M_Stone ->  | W10: =M_Stone ->  | X10: =M_Stone ->  | Y10: =M_Stone ->  | Z10: =M_Stone ->  | AA10: =M_Stone ->  | AB10: =M_Stone ->  | AC10: =M_Stone ->  | AD10: =M_Stone ->  | AE10: =M_Stone ->  | AF10: =M_Stone ->  | AG10: =M_Stone ->  | AH10: =M_Stone ->  | AI10: =M_Stone ->  | AJ10: =M_Stone ->  | AK10: =M_Stone ->  | AL10: =M_Stone ->  | AM10: =M_Stone ->  | AN10: =M_Stone ->  | AO10: =M_Stone ->  | AP10: =M_Stone ->  | AQ10: =M_Stone ->  | AR10: =M_Stone ->  | AS10: =M_Stone ->  | AT10: =M_Stone ->  | AU10: =M_Stone -> 
A11: =ROW()-ROW($A$9) -> 2 | B11: T | C11: Requirements | D11: Person 2 | E11: 2 | F11: 0 | G11: $140 | H11: =IF(E11="","",E11-F11) -> 2 | I11: =IF(H11="","",H11/E11) -> 100% | J11: =IF(AND(GanttT[[#This Row],[Type]]="M",N11<Today,GanttT[[#This Row],[Remai- ning]]>0),Cross,IF(AND(O11<Today,GanttT[[#This Row],[Remai- ning]]>0),Cross,IF(C11<>"",Tick,""))) -> ü | K11: Same | M11: =IF(GanttT[[#This Row],[Type]]="M",GanttT[[#This Row],[Manual Date]],IF(K11="","",IF(K11="After",N10+1,IF(K11="Same",M10,L11)))) -> 2024-08-01 | N11: =IF(GanttT[[#This Row],[Type]]="M",GanttT[[#This Row],[Manual Date]],IF(K11="","",IF(Weekend_work="No",WORKDAY(M11,E11)-1,M11+E11-1))) -> 2024-08-04 | O11: =IF(GanttT[[#This Row],[Type]]="M","",IF(K11="","",IF(Weekend_work="No",WORKDAY(M11,H11)-1,M11+H11-1))) -> 2024-08-04 | Q11: =M_Stone ->  | R11: =M_Stone ->  | S11: =M_Stone ->  | T11: =M_Stone ->  | U11: =M_Stone ->  | V11: =M_Stone ->  | W11: =M_Stone ->  | X11: =M_Stone ->  | Y11: =M_Stone ->  | Z11: =M_Stone ->  | AA11: =M_Stone ->  | AB11: =M_Stone ->  | AC11: =M_Stone ->  | AD11: =M_Stone ->  | AE11: =M_Stone ->  | AF11: =M_Stone ->  | AG11: =M_Stone ->  | AH11: =M_Stone ->  | AI11: =M_Stone ->  | AJ11: =M_Stone ->  | AK11: =M_Stone ->  | AL11: =M_Stone ->  | AM11: =M_Stone ->  | AN11: =M_Stone ->  | AO11: =M_Stone ->  | AP11: =M_Stone ->  | AQ11: =M_Stone ->  | AR11: =M_Stone ->  | AS11: =M_Stone ->  | AT11: =M_Stone ->  | AU11: =M_Stone -> 
A12: 3 | B12: T | C12: Inputs | D12: Person 3 | E12: 1 | F12: 1 | G12: $200 | H12: =IF(E12="","",E12-F12) -> 0 | I12: =IF(H12="","",H12/E12) -> 0% | J12: =IF(AND(GanttT[[#This Row],[Type]]="M",N12<Today,GanttT[[#This Row],[Remai- ning]]>0),Cross,IF(AND(O12<Today,GanttT[[#This Row],[Remai- ning]]>0),Cross,IF(C12<>"",Tick,""))) -> û | K12: After | M12: =IF(GanttT[[#This Row],[Type]]="M",GanttT[[#This Row],[Manual Date]],IF(K12="","",IF(K12="After",N11+1,IF(K12="Same",M11,L12)))) -> 2024-08-05 | N12: =IF(GanttT[[#This Row],[Type]]="M",GanttT[[#This Row],[Manual Date]],IF(K12="","",IF(Weekend_work="No",WORKDAY(M12,E12)-1,M12+E12-1))) -> 2024-08-05 | O12: =IF(GanttT[[#This Row],[Type]]="M","",IF(K12="","",IF(Weekend_work="No",WORKDAY(M12,H12)-1,M12+H12-1))) -> 2024-08-04 | Q12: =M_Stone ->  | R12: =M_Stone ->  | S12: =M_Stone ->  | T12: =M_Stone ->  | U12: =M_Stone ->  | V12: =M_Stone ->  | W12: =M_Stone ->  | X12: =M_Stone ->  | Y12: =M_Stone ->  | Z12: =M_Stone ->  | AA12: =M_Stone ->  | AB12: =M_Stone ->  | AC12: =M_Stone ->  | AD12: =M_Stone ->  | AE12: =M_Stone ->  | AF12: =M_Stone ->  | AG12: =M_Stone ->  | AH12: =M_Stone ->  | AI12: =M_Stone ->  | AJ12: =M_Stone ->  | AK12: =M_Stone ->  | AL12: =M_Stone ->  | AM12: =M_Stone ->  | AN12: =M_Stone ->  | AO12: =M_Stone ->  | AP12: =M_Stone ->  | AQ12: =M_Stone ->  | AR12: =M_Stone ->  | AS12: =M_Stone ->  | AT12: =M_Stone ->  | AU12: =M_Stone -> 
A13: 4 | B13: T | C13: Design | D13: Person 4 | E13: 5 | F13: 0 | G13: $180 | H13: 5 | I13: 100% | J13: =IF(AND(GanttT[[#This Row],[Type]]="M",N13<Today,GanttT[[#This Row],[Remai- ning]]>0),Cross,IF(AND(O13<Today,GanttT[[#This Row],[Remai- ning]]>0),Cross,IF(C13<>"",Tick,""))) -> ü | K13: After | M13: =IF(GanttT[[#This Row],[Type]]="M",GanttT[[#This Row],[Manual Date]],IF(K13="","",IF(K13="After",N12+1,IF(K13="Same",M12,L13)))) -> 2024-08-06 | N13: =IF(GanttT[[#This Row],[Type]]="M",GanttT[[#This Row],[Manual Date]],IF(K13="","",IF(Weekend_work="No",WORKDAY(M13,E13)-1,M13+E13-1))) -> 2024-08-12 | O13: =IF(GanttT[[#This Row],[Type]]="M","",IF(K13="","",IF(Weekend_work="No",WORKDAY(M13,H13)-1,M13+H13-1))) -> 2024-08-12 | Q13: =M_Stone ->  | R13: =M_Stone ->  | S13: =M_Stone ->  | T13: =M_Stone ->  | U13: =M_Stone ->  | V13: =M_Stone ->  | W13: =M_Stone ->  | X13: =M_Stone ->  | Y13: =M_Stone ->  | Z13: =M_Stone ->  | AA13: =M_Stone ->  | AB13: =M_Stone ->  | AC13: =M_Stone ->  | AD13: =M_Stone ->  | AE13: =M_Stone ->  | AF13: =M_Stone ->  | AG13: =M_Stone ->  | AH13: =M_Stone ->  | AI13: =M_Stone ->  | AJ13: =M_Stone ->  | AK13: =M_Stone ->  | AL13: =M_Stone ->  | AM13: =M_Stone ->  | AN13: =M_Stone ->  | AO13: =M_Stone ->  | AP13: =M_Stone ->  | AQ13: =M_Stone ->  | AR13: =M_Stone ->  | AS13: =M_Stone ->  | AT13: =M_Stone ->  | AU13: =M_Stone -> 
A14: 5 | B14: M | C14: Project Testing | E14: =SUM(E10:E13) -> 10 | F14: =SUM(F10:F13) -> 2 | G14: =SUM(G10:G13) -> $670 | H14: 8 | I14: 80% | J14: =IF(AND(GanttT[[#This Row],[Type]]="M",N14<Today,GanttT[[#This Row],[Remai- ning]]>0),Cross,IF(AND(O14<Today,GanttT[[#This Row],[Remai- ning]]>0),Cross,IF(C14<>"",Tick,""))) -> û | K14: Manual | L14: 2024-08-12 | M14: =IF(GanttT[[#This Row],[Type]]="M",GanttT[[#This Row],[Manual Date]],IF(K14="","",IF(K14="After",N13+1,IF(K14="Same",M13,L14)))) -> 2024-08-12 | N14: =IF(GanttT[[#This Row],[Type]]="M",GanttT[[#This Row],[Manual Date]],IF(K14="","",IF(Weekend_work="No",WORKDAY(M14,E14)-1,M14+E14-1))) -> 2024-08-12 | O14: =IF(GanttT[[#This Row],[Type]]="M","",IF(K14="","",IF(Weekend_work="No",WORKDAY(M14,H14)-1,M14+H14-1))) ->  | Q14: =M_Stone ->  | R14: =M_Stone ->  | S14: =M_Stone ->  | T14: =M_Stone ->  | U14: =M_Stone ->  | V14: =M_Stone ->  | W14: =M_Stone ->  | X14: =M_Stone ->  | Y14: =M_Stone ->  | Z14: =M_Stone ->  | AA14: =M_Stone ->  | AB14: =M_Stone -> ♦ | AC14: =M_Stone ->  | AD14: =M_Stone ->  | AE14: =M_Stone ->  | AF14: =M_Stone ->  | AG14: =M_Stone ->  | AH14: =M_Stone ->  | AI14: =M_Stone ->  | AJ14: =M_Stone ->  | AK14: =M_Stone ->  | AL14: =M_Stone ->  | AM14: =M_Stone ->  | AN14: =M_Stone ->  | AO14: =M_Stone ->  | AP14: =M_Stone ->  | AQ14: =M_Stone ->  | AR14: =M_Stone ->  | AS14: =M_Stone ->  | AT14: =M_Stone ->  | AU14: =M_Stone -> 
A15: 6 | B15: T | C15: Process | D15: Person 2 | E15: 3 | F15: 2 | G15: $300 | H15: 1 | I15: 33% | J15: =IF(AND(GanttT[[#This Row],[Type]]="M",N15<Today,GanttT[[#This Row],[Remai- ning]]>0),Cross,IF(AND(O15<Today,GanttT[[#This Row],[Remai- ning]]>0),Cross,IF(C15<>"",Tick,""))) -> û | K15: After | M15: =IF(GanttT[[#This Row],[Type]]="M",GanttT[[#This Row],[Manual Date]],IF(K15="","",IF(K15="After",N14+1,IF(K15="Same",M14,L15)))) -> 2024-08-13 | N15: =IF(GanttT[[#This Row],[Type]]="M",GanttT[[#This Row],[Manual Date]],IF(K15="","",IF(Weekend_work="No",WORKDAY(M15,E15)-1,M15+E15-1))) -> 2024-08-15 | O15: =IF(GanttT[[#This Row],[Type]]="M","",IF(K15="","",IF(Weekend_work="No",WORKDAY(M15,H15)-1,M15+H15-1))) -> 2024-08-13 | Q15: =M_Stone ->  | R15: =M_Stone ->  | S15: =M_Stone ->  | T15: =M_Stone ->  | U15: =M_Stone ->  | V15: =M_Stone ->  | W15: =M_Stone ->  | X15: =M_Stone ->  | Y15: =M_Stone ->  | Z15: =M_Stone ->  | AA15: =M_Stone ->  | AB15: =M_Stone ->  | AC15: =M_Stone ->  | AD15: =M_Stone ->  | AE15: =M_Stone ->  | AF15: =M_Stone ->  | AG15: =M_Stone ->  | AH15: =M_Stone ->  | AI15: =M_Stone ->  | AJ15: =M_Stone ->  | AK15: =M_Stone ->  | AL15: =M_Stone ->  | AM15: =M_Stone ->  | AN15: =M_Stone ->  | AO15: =M_Stone ->  | AP15: =M_Stone ->  | AQ15: =M_Stone ->  | AR15: =M_Stone ->  | AS15: =M_Stone ->  | AT15: =M_Stone ->  | AU15: =M_Stone -> 
A16: 7 | B16: T | C16: Design | D16: Person 4 | E16: 2 | F16: 1 | G16: $190 | H16: 1 | I16: 50% | J16: =IF(AND(GanttT[[#This Row],[Type]]="M",N16<Today,GanttT[[#This Row],[Remai- ning]]>0),Cross,IF(AND(O16<Today,GanttT[[#This Row],[Remai- ning]]>0),Cross,IF(C16<>"",Tick,""))) -> û | K16: Same | M16: =IF(GanttT[[#This Row],[Type]]="M",GanttT[[#This Row],[Manual Date]],IF(K16="","",IF(K16="After",N15+1,IF(K16="Same",M15,L16)))) -> 2024-08-13 | N16: =IF(GanttT[[#This Row],[Type]]="M",GanttT[[#This Row],[Manual Date]],IF(K16="","",IF(Weekend_work="No",WORKDAY(M16,E16)-1,M16+E16-1))) -> 2024-08-14 | O16: =IF(GanttT[[#This Row],[Type]]="M","",IF(K16="","",IF(Weekend_work="No",WORKDAY(M16,H16)-1,M16+H16-1))) -> 2024-08-13 | Q16: =M_Stone ->  | R16: =M_Stone ->  | S16: =M_Stone ->  | T16: =M_Stone ->  | U16: =M_Stone ->  | V16: =M_Stone ->  | W16: =M_Stone ->  | X16: =M_Stone ->  | Y16: =M_Stone ->  | Z16: =M_Stone ->  | AA16: =M_Stone ->  | AB16: =M_Stone ->  | AC16: =M_Stone ->  | AD16: =M_Stone ->  | AE16: =M_Stone ->  | AF16: =M_Stone ->  | AG16: =M_Stone ->  | AH16: =M_Stone ->  | AI16: =M_Stone ->  | AJ16: =M_Stone ->  | AK16: =M_Stone ->  | AL16: =M_Stone ->  | AM16: =M_Stone ->  | AN16: =M_Stone ->  | AO16: =M_Stone ->  | AP16: =M_Stone ->  | AQ16: =M_Stone ->  | AR16: =M_Stone ->  | AS16: =M_Stone ->  | AT16: =M_Stone ->  | AU16: =M_Stone -> 
A17: 8 | B17: T | C17: Data model | D17: Person 3 | E17: 8 | F17: 3 | G17: $200 | H17: 5 | I17: 63% | J17: =IF(AND(GanttT[[#This Row],[Type]]="M",N17<Today,GanttT[[#This Row],[Remai- ning]]>0),Cross,IF(AND(O17<Today,GanttT[[#This Row],[Remai- ning]]>0),Cross,IF(C17<>"",Tick,""))) -> û | K17: Manual | L17: 2024-08-06 | M17: =IF(GanttT[[#This Row],[Type]]="M",GanttT[[#This Row],[Manual Date]],IF(K17="","",IF(K17="After",N16+1,IF(K17="Same",M16,L17)))) -> 2024-08-06 | N17: =IF(GanttT[[#This Row],[Type]]="M",GanttT[[#This Row],[Manual Date]],IF(K17="","",IF(Weekend_work="No",WORKDAY(M17,E17)-1,M17+E17-1))) -> 2024-08-15 | O17: =IF(GanttT[[#This Row],[Type]]="M","",IF(K17="","",IF(Weekend_work="No",WORKDAY(M17,H17)-1,M17+H17-1))) -> 2024-08-12 | Q17: =M_Stone ->  | R17: =M_Stone ->  | S17: =M_Stone ->  | T17: =M_Stone ->  | U17: =M_Stone ->  | V17: =M_Stone ->  | W17: =M_Stone ->  | X17: =M_Stone ->  | Y17: =M_Stone ->  | Z17: =M_Stone ->  | AA17: =M_Stone ->  | AB17: =M_Stone ->  | AC17: =M_Stone ->  | AD17: =M_Stone ->  | AE17: =M_Stone ->  | AF17: =M_Stone ->  | AG17: =M_Stone ->  | AH17: =M_Stone ->  | AI17: =M_Stone ->  | AJ17: =M_Stone ->  | AK17: =M_Stone ->  | AL17: =M_Stone ->  | AM17: =M_Stone ->  | AN17: =M_Stone ->  | AO17: =M_Stone ->  | AP17: =M_Stone ->  | AQ17: =M_Stone ->  | AR17: =M_Stone ->  | AS17: =M_Stone ->  | AT17: =M_Stone ->  | AU17: =M_Stone -> 
A18: 9 | B18: M | C18: Project Deliver | E18: =SUM(E15:E17) -> 13 | F18: =SUM(F15:F17) -> 6 | G18: =SUM(G15:G17) -> $690 | H18: 7 | I18: 54% | J18: =IF(AND(GanttT[[#This Row],[Type]]="M",N18<Today,GanttT[[#This Row],[Remai- ning]]>0),Cross,IF(AND(O18<Today,GanttT[[#This Row],[Remai- ning]]>0),Cross,IF(C18<>"",Tick,""))) -> û | K18: Manual | L18: 2024-08-15 | M18: =IF(GanttT[[#This Row],[Type]]="M",GanttT[[#This Row],[Manual Date]],IF(K18="","",IF(K18="After",N17+1,IF(K18="Same",M17,L18)))) -> 2024-08-15 | N18: =IF(GanttT[[#This Row],[Type]]="M",GanttT[[#This Row],[Manual Date]],IF(K18="","",IF(Weekend_work="No",WORKDAY(M18,E18)-1,M18+E18-1))) -> 2024-08-15 | O18: =IF(GanttT[[#This Row],[Type]]="M","",IF(K18="","",IF(Weekend_work="No",WORKDAY(M18,H18)-1,M18+H18-1))) ->  | Q18: =M_Stone ->  | R18: =M_Stone ->  | S18: =M_Stone ->  | T18: =M_Stone ->  | U18: =M_Stone ->  | V18: =M_Stone ->  | W18: =M_Stone ->  | X18: =M_Stone ->  | Y18: =M_Stone ->  | Z18: =M_Stone ->  | AA18: =M_Stone ->  | AB18: =M_Stone ->  | AC18: =M_Stone ->  | AD18: =M_Stone ->  | AE18: =M_Stone -> ♦ | AF18: =M_Stone ->  | AG18: =M_Stone ->  | AH18: =M_Stone ->  | AI18: =M_Stone ->  | AJ18: =M_Stone ->  | AK18: =M_Stone ->  | AL18: =M_Stone ->  | AM18: =M_Stone ->  | AN18: =M_Stone ->  | AO18: =M_Stone ->  | AP18: =M_Stone ->  | AQ18: =M_Stone ->  | AR18: =M_Stone ->  | AS18: =M_Stone ->  | AT18: =M_Stone ->  | AU18: =M_Stone -> 
A19: =ROW()-ROW($A$9) -> 10 | B19: T | C19: Define server | D19: Person 10 | E19: 4 | F19: 3 | G19: $340 | H19: =IF(E19="","",E19-F19) -> 1 | I19: =IF(H19="","",H19/E19) -> 25% | J19: =IF(AND(GanttT[[#This Row],[Type]]="M",N19<Today,GanttT[[#This Row],[Remai- ning]]>0),Cross,IF(AND(O19<Today,GanttT[[#This Row],[Remai- ning]]>0),Cross,IF(C19<>"",Tick,""))) -> û | K19: After | M19: =IF(GanttT[[#This Row],[Type]]="M",GanttT[[#This Row],[Manual Date]],IF(K19="","",IF(K19="After",N18+1,IF(K19="Same",M18,L19)))) -> 2024-08-16 | N19: =IF(GanttT[[#This Row],[Type]]="M",GanttT[[#This Row],[Manual Date]],IF(K19="","",IF(Weekend_work="No",WORKDAY(M19,E19)-1,M19+E19-1))) -> 2024-08-21 | O19: =IF(GanttT[[#This Row],[Type]]="M","",IF(K19="","",IF(Weekend_work="No",WORKDAY(M19,H19)-1,M19+H19-1))) -> 2024-08-18 | Q19: =M_Stone ->  | R19: =M_Stone ->  | S19: =M_Stone ->  | T19: =M_Stone ->  | U19: =M_Stone ->  | V19: =M_Stone ->  | W19: =M_Stone ->  | X19: =M_Stone ->  | Y19: =M_Stone ->  | Z19: =M_Stone ->  | AA19: =M_Stone ->  | AB19: =M_Stone ->  | AC19: =M_Stone ->  | AD19: =M_Stone ->  | AE19: =M_Stone ->  | AF19: =M_Stone ->  | AG19: =M_Stone ->  | AH19: =M_Stone ->  | AI19: =M_Stone ->  | AJ19: =M_Stone ->  | AK19: =M_Stone ->  | AL19: =M_Stone ->  | AM19: =M_Stone ->  | AN19: =M_Stone ->  | AO19: =M_Stone ->  | AP19: =M_Stone ->  | AQ19: =M_Stone ->  | AR19: =M_Stone ->  | AS19: =M_Stone ->  | AT19: =M_Stone ->  | AU19: =M_Stone -> 
A20: =ROW()-ROW($A$9) -> 11 | B20: T | C20: Configure server | D20: Person 8 | E20: 1 | F20: 1 | G20: $200 | H20: =IF(E20="","",E20-F20) -> 0 | I20: =IF(H20="","",H20/E20) -> 0% | J20: =IF(AND(GanttT[[#This Row],[Type]]="M",N20<Today,GanttT[[#This Row],[Remai- ning]]>0),Cross,IF(AND(O20<Today,GanttT[[#This Row],[Remai- ning]]>0),Cross,IF(C20<>"",Tick,""))) -> û | K20: After | M20: =IF(GanttT[[#This Row],[Type]]="M",GanttT[[#This Row],[Manual Date]],IF(K20="","",IF(K20="After",N19+1,IF(K20="Same",M19,L20)))) -> 2024-08-22 | N20: =IF(GanttT[[#This Row],[Type]]="M",GanttT[[#This Row],[Manual Date]],IF(K20="","",IF(Weekend_work="No",WORKDAY(M20,E20)-1,M20+E20-1))) -> 2024-08-22 | O20: =IF(GanttT[[#This Row],[Type]]="M","",IF(K20="","",IF(Weekend_work="No",WORKDAY(M20,H20)-1,M20+H20-1))) -> 2024-08-21 | Q20: =M_Stone ->  | R20: =M_Stone ->  | S20: =M_Stone ->  | T20: =M_Stone ->  | U20: =M_Stone ->  | V20: =M_Stone ->  | W20: =M_Stone ->  | X20: =M_Stone ->  | Y20: =M_Stone ->  | Z20: =M_Stone ->  | AA20: =M_Stone ->  | AB20: =M_Stone ->  | AC20: =M_Stone ->  | AD20: =M_Stone ->  | AE20: =M_Stone ->  | AF20: =M_Stone ->  | AG20: =M_Stone ->  | AH20: =M_Stone ->  | AI20: =M_Stone ->  | AJ20: =M_Stone ->  | AK20: =M_Stone ->  | AL20: =M_Stone ->  | AM20: =M_Stone ->  | AN20: =M_Stone ->  | AO20: =M_Stone ->  | AP20: =M_Stone ->  | AQ20: =M_Stone ->  | AR20: =M_Stone ->  | AS20: =M_Stone ->  | AT20: =M_Stone ->  | AU20: =M_Stone -> 
A21: =ROW()-ROW($A$9) -> 12 | B21: T | C21: Task 7 | D21: Person 2 | E21: 3 | F21: 2 | G21: $230 | H21: =IF(E21="","",E21-F21) -> 1 | I21: =IF(H21="","",H21/E21) -> 33% | J21: =IF(AND(GanttT[[#This Row],[Type]]="M",N21<Today,GanttT[[#This Row],[Remai- ning]]>0),Cross,IF(AND(O21<Today,GanttT[[#This Row],[Remai- ning]]>0),Cross,IF(C21<>"",Tick,""))) -> û | K21: Same | M21: =IF(GanttT[[#This Row],[Type]]="M",GanttT[[#This Row],[Manual Date]],IF(K21="","",IF(K21="After",N20+1,IF(K21="Same",M20,L21)))) -> 2024-08-22 | N21: =IF(GanttT[[#This Row],[Type]]="M",GanttT[[#This Row],[Manual Date]],IF(K21="","",IF(Weekend_work="No",WORKDAY(M21,E21)-1,M21+E21-1))) -> 2024-08-26 | O21: =IF(GanttT[[#This Row],[Type]]="M","",IF(K21="","",IF(Weekend_work="No",WORKDAY(M21,H21)-1,M21+H21-1))) -> 2024-08-22 | Q21: =M_Stone ->  | R21: =M_Stone ->  | S21: =M_Stone ->  | T21: =M_Stone ->  | U21: =M_Stone ->  | V21: =M_Stone ->  | W21: =M_Stone ->  | X21: =M_Stone ->  | Y21: =M_Stone ->  | Z21: =M_Stone ->  | AA21: =M_Stone ->  | AB21: =M_Stone ->  | AC21: =M_Stone ->  | AD21: =M_Stone ->  | AE21: =M_Stone ->  | AF21: =M_Stone ->  | AG21: =M_Stone ->  | AH21: =M_Stone ->  | AI21: =M_Stone ->  | AJ21: =M_Stone ->  | AK21: =M_Stone ->  | AL21: =M_Stone ->  | AM21: =M_Stone ->  | AN21: =M_Stone ->  | AO21: =M_Stone ->  | AP21: =M_Stone ->  | AQ21: =M_Stone ->  | AR21: =M_Stone ->  | AS21: =M_Stone ->  | AT21: =M_Stone ->  | AU21: =M_Stone -> 
A22: =ROW()-ROW($A$9) -> 13 | B22: M | C22: Project Completion | E22: =SUM(E19:E21) -> 8 | F22: =SUM(F19:F21) -> 6 | G22: =SUM(G19:G21) -> $770 | H22: =IF(E22="","",E22-F22) -> 2 | I22: =IF(H22="","",H22/E22) -> 25% | J22: =IF(AND(GanttT[[#This Row],[Type]]="M",N22<Today,GanttT[[#This Row],[Remai- ning]]>0),Cross,IF(AND(O22<Today,GanttT[[#This Row],[Remai- ning]]>0),Cross,IF(C22<>"",Tick,""))) -> û | K22: Manual | L22: 2024-08-26 | M22: =IF(GanttT[[#This Row],[Type]]="M",GanttT[[#This Row],[Manual Date]],IF(K22="","",IF(K22="After",N21+1,IF(K22="Same",M21,L22)))) -> 2024-08-26 | N22: =IF(GanttT[[#This Row],[Type]]="M",GanttT[[#This Row],[Manual Date]],IF(K22="","",IF(Weekend_work="No",WORKDAY(M22,E22)-1,M22+E22-1))) -> 2024-08-26 | O22: =IF(GanttT[[#This Row],[Type]]="M","",IF(K22="","",IF(Weekend_work="No",WORKDAY(M22,H22)-1,M22+H22-1))) ->  | Q22: =M_Stone ->  | R22: =M_Stone ->  | S22: =M_Stone ->  | T22: =M_Stone ->  | U22: =M_Stone ->  | V22: =M_Stone ->  | W22: =M_Stone ->  | X22: =M_Stone ->  | Y22: =M_Stone ->  | Z22: =M_Stone ->  | AA22: =M_Stone ->  | AB22: =M_Stone ->  | AC22: =M_Stone ->  | AD22: =M_Stone ->  | AE22: =M_Stone ->  | AF22: =M_Stone ->  | AG22: =M_Stone ->  | AH22: =M_Stone ->  | AI22: =M_Stone ->  | AJ22: =M_Stone ->  | AK22: =M_Stone ->  | AL22: =M_Stone ->  | AM22: =M_Stone ->  | AN22: =M_Stone ->  | AO22: =M_Stone ->  | AP22: =M_Stone -> ♦ | AQ22: =M_Stone ->  | AR22: =M_Stone ->  | AS22: =M_Stone ->  | AT22: =M_Stone ->  | AU22: =M_Stone -> 
A23: =ROW()-ROW($A$9) -> 14 | B23: T | C23: Prepare PROD | D23: Person 8 | E23: 4 | F23: 1 | G23: $200 | H23: =IF(E23="","",E23-F23) -> 3 | I23: =IF(H23="","",H23/E23) -> 75% | J23: =IF(AND(GanttT[[#This Row],[Type]]="M",N23<Today,GanttT[[#This Row],[Remai- ning]]>0),Cross,IF(AND(O23<Today,GanttT[[#This Row],[Remai- ning]]>0),Cross,IF(C23<>"",Tick,""))) -> û | K23: Manual | L23: 2024-08-27 | M23: =IF(GanttT[[#This Row],[Type]]="M",GanttT[[#This Row],[Manual Date]],IF(K23="","",IF(K23="After",N22+1,IF(K23="Same",M22,L23)))) -> 2024-08-27 | N23: =IF(GanttT[[#This Row],[Type]]="M",GanttT[[#This Row],[Manual Date]],IF(K23="","",IF(Weekend_work="No",WORKDAY(M23,E23)-1,M23+E23-1))) -> 2024-09-01 | O23: =IF(GanttT[[#This Row],[Type]]="M","",IF(K23="","",IF(Weekend_work="No",WORKDAY(M23,H23)-1,M23+H23-1))) -> 2024-08-29 | Q23: =M_Stone ->  | R23: =M_Stone ->  | S23: =M_Stone ->  | T23: =M_Stone ->  | U23: =M_Stone ->  | V23: =M_Stone ->  | W23: =M_Stone ->  | X23: =M_Stone ->  | Y23: =M_Stone ->  | Z23: =M_Stone ->  | AA23: =M_Stone ->  | AB23: =M_Stone ->  | AC23: =M_Stone ->  | AD23: =M_Stone ->  | AE23: =M_Stone ->  | AF23: =M_Stone ->  | AG23: =M_Stone ->  | AH23: =M_Stone ->  | AI23: =M_Stone ->  | AJ23: =M_Stone ->  | AK23: =M_Stone ->  | AL23: =M_Stone ->  | AM23: =M_Stone ->  | AN23: =M_Stone ->  | AO23: =M_Stone ->  | AP23: =M_Stone ->  | AQ23: =M_Stone ->  | AR23: =M_Stone ->  | AS23: =M_Stone ->  | AT23: =M_Stone ->  | AU23: =M_Stone -> 

Sheet Dashboard
J2: Project Dashboard
R3: =TODAY() -> 2024-11-27
C5: Project Name | E5: =+Gantt!D4 -> Olympic 2024
C7: Project Lead | E7: =+Gantt!D5 -> Template22
C9: Start Date | E9: =+Gantt!D6 -> 2024-08-01
C11: End Date | E11: =+Gantt!D7 -> 2024-09-01
C13: On Track | E13: =Calc!AL5 -> 12 items in Tasks and Milestones are overdue.

Sheet Calc
B3: Project Cost | J3: Progress | O3: Resources | S3: Task Status | W3: Overdue Tasks | AD3: Overdue Milestones | AL3: Total Overdue | AR3: Project Duration
B4: Budget | C4: Actual | D4: % Spent | K4: Completed | L4: Remaining | P4: Workload | AR4: =MIN(GanttT[Start]) -> 2024-08-01 | AS4: =MAX(GanttT[Finish]) -> 2024-09-01
B5: =Settings!B12 -> $5,500 | C5: =SUMIF(GanttT[Type],"T",GanttT[Cost]) -> $2,330 | D5: =TEXT(C5/B5,"0%")&" Consumed" -> 42% Consumed | E5: =IF(B5<1000, B5, IF(AND(B5>=1000, B5<100000), TEXT(B5/1000, "#,##.0") & " K", IF(B5>=1000000, TEXT(B5/1000000, "#,##.0") & " M", ""))) -> 5.5 K | F5: ="Total Budget: "&TEXT(E5,"$ #,##") -> Total Budget: 5.5 K | J5: 100% | K5: =AVERAGEIF(GanttT[Type],"T",GanttT[% Prog]) -> 48% | L5: =J5-K5 -> 52% | O5: 0 | P5: =IFERROR(VLOOKUP(Calc!O5,ResourceT[],2,0),"") ->  | Q5: Tasks | S5: Completed | T5: In Progress | U5: Not Started | W5: Total Tasks | X5: Overdue Tasks | AD5: Total Milestones | AE5: Overdue Milestones | AL5: =IF(AND(X6>0,AE6>0),X6+AE6&" items in Tasks and Milestones are overdue.",IF(AND(X6>0,AE6=0),Y6,IF(AND(X6=0,AE6>0),AF6,"All Tasks and Milestones are on track!"))) -> 12 items in Tasks and Milestones are overdue.
O6: =O5+1 -> 1 | P6: =IFERROR(VLOOKUP(Calc!O6,ResourceT[],2,0),"") -> Person 1 | Q6: =COUNTIFS(GanttT[Resource],Calc!P6,GanttT[Type],"T") -> 1 | S6: =COUNTIFS(GanttT[% Prog],"="&100%,GanttT[Type],"T") -> 2 | T6: =COUNTIFS(GanttT[Type],"T",GanttT[% Prog],">="&1%,GanttT[% Prog],"<"&100%) -> 7 | U6: =COUNTIFS(GanttT[% Prog],"="&0,GanttT[Type],"T") -> 2 | W6: =COUNTIF(GanttT[Type],"T") -> 11 | X6: =COUNTIFS(GanttT[Type],"T",GanttT[Done Until],"<="&Today,GanttT[Remai- ning],">"&0,GanttT[On Track],"="&Cross) -> 9 | Y6: =X6&" Out of "&W6&" Tasks are Overdue" -> 9 Out of 11 Tasks are Overdue | AD6: =COUNTIFS(GanttT[Type],"M") -> 3 | AE6: =COUNTIFS(GanttT[Type],"M",GanttT[Finish],"<="&TODAY()) -> 3 | AF6: =AE6&" Out of "&AD6&" Milestones are Overdue" -> 3 Out of 3 Milestones are Overdue
O7: =O6+1 -> 2 | P7: =IFERROR(VLOOKUP(Calc!O7,ResourceT[],2,0),"") -> Person 2 | Q7: =COUNTIFS(GanttT[Resource],Calc!P7,GanttT[Type],"T") -> 3
O8: 3 | P8: =IFERROR(VLOOKUP(Calc!O8,ResourceT[],2,0),"") -> Person 3 | Q8: =COUNTIFS(GanttT[Resource],Calc!P8,GanttT[Type],"T") -> 2
O9: 4 | P9: =IFERROR(VLOOKUP(Calc!O9,ResourceT[],2,0),"") -> Person 4 | Q9: =COUNTIFS(GanttT[Resource],Calc!P9,GanttT[Type],"T") -> 2
O10: 5 | P10: =IFERROR(VLOOKUP(Calc!O10,ResourceT[],2,0),"") -> Person 5 | Q10: =COUNTIFS(GanttT[Resource],Calc!P10,GanttT[Type],"T") -> 0
O11: 6 | P11: =IFERROR(VLOOKUP(Calc!O11,ResourceT[],2,0),"") -> Person 6 | Q11: =COUNTIFS(GanttT[Resource],Calc!P11,GanttT[Type],"T") -> 0
O12: 7 | P12: =IFERROR(VLOOKUP(Calc!O12,ResourceT[],2,0),"") -> Person 7 | Q12: =COUNTIFS(GanttT[Resource],Calc!P12,GanttT[Type],"T") -> 0
O13: 8 | P13: =IFERROR(VLOOKUP(Calc!O13,ResourceT[],2,0),"") -> Person 8 | Q13: =COUNTIFS(GanttT[Resource],Calc!P13,GanttT[Type],"T") -> 2
O14: 9 | P14: =IFERROR(VLOOKUP(Calc!O14,ResourceT[],2,0),"") -> Person 9 | Q14: =COUNTIFS(GanttT[Resource],Calc!P14,GanttT[Type],"T") -> 0
O15: 10 | P15: =IFERROR(VLOOKUP(Calc!O15,ResourceT[],2,0),"") -> Person 10 | Q15: =COUNTIFS(GanttT[Resource],Calc!P15,GanttT[Type],"T") -> 1

Sheet Settings
B1: DO NOT INSERT ROWS AND COLUMNS IN THIS SHEET, CALCULATION AND ADJUSTMENTS MAY BE DISTURBED. | Z1: Below are Excel Tables. So if you need to delete a ROW in the table, Select the required table and Right Click > Delete > Delete Row OR Delete Column
B2: SCROL THROUGH RIGHT TO SEE MORE TABLES TO BE UPDATED AS PER REQUIREMENT | Z2: If you Delete in traditional way, it will DELETE OTHER INFORMATION ON THIS SHEET. Be careful!!
B3: Update Company Name and Project Name below | D3: Do not change or delete below info | K3: Do not change or delete below info | P3: Do not change or delete below info | Z3: Update below tables as per requirement | AL3: Update Holidays accordingly
P4: You may change the values in Grey Cells only
K5: Named Cells | Q5: 0 | Z5: Lists | AL5: Holidays
D6: Validations | K6: Normal | L6: Webding | M6: Name | P6: Preferences | Q6: Value | R6: Cell Name | S6: Explanation | Z6: Milestones | AB6: Task | AE6: Sr # | AF6: Resource | AG6: Leave From | AH6: Leave To | AL6: Date | AM6: Holidays & [Observances]
B7: Olympic International | D7: Dependency with task before | E7: Task Table | L7: ü | M7: Tick | P7: Today's Date | Q7: =TODAY() -> 2024-11-27 | R7: Today | S7: Can be hardcoded | Z7: Define Problem | AB7: Meet Client | AE7: =ROW(ResourceT[[#Headers],[Sr '#]])+ROW()-12 -> 1 | AF7: Person 1 | AG7: 2024-04-10 | AH7: 15-04-2024 | AL7: 2024-01-01 | AM7: New Year's Day
B8: Project Planning Tool | D8: Manual | E8: Independent task - will b set manually | L8: û | M8: Cross | P8: Work on weekends | Q8: No | R8: Weekend_work | S8: Used to calculate task completion | Z8: Produce the Plan | AB8: Requirements | AE8: =ROW(ResourceT[[#Headers],[Sr '#]])+ROW()-12 -> 2 | AF8: Person 2 | AL8: 2024-01-18 | AM8: Martin Luther King Day
B9: =B7&CHAR(10)&B8 -> Olympic International Project Planning Tool | D9: After | E9: After previous task | L9: ♦ | M9: Open Milestone | P9: Show schedule from | Q9: =MIN(GanttT[Manual Date]) -> 2024-08-01 | R9: Show_from | S9: When the Gantt chart will start - will start week on that day | Z9: Resource Planning | AB9: Process | AE9: =ROW(ResourceT[[#Headers],[Sr '#]])+ROW()-12 -> 3 | AF9: Person 3 | AL9: 2024-02-02 | AM9: Groundhog Day
D10: Same | E10: Same as previous task | L10: ⚑ | M10: Completed Milestone | P10: Days per cell | Q10: 1 day(s) | R10: Days_per_cell | S10: How many days a cell represents (30 for monthly) | Z10: Project Development | AB10: Inputs | AE10: =ROW(ResourceT[[#Headers],[Sr '#]])+ROW()-12 -> 4 | AF10: Person 4 | AL10: 2024-02-12 | AM10: Lincoln's Birthday
B11: Put Budget amount below | P11: Show grid ? | Q11: No | R11: Show_grid | S11: Horizontal lines | Z11: Project Testing | AB11: Design | AE11: =ROW(ResourceT[[#Headers],[Sr '#]])+ROW()-12 -> 5 | AF11: Person 5 | AG11: 2024-05-14 | AH11: 22-05-2024 | AL11: 2024-02-14 | AM11: Valentine's Day
B12: $5,500 | P12: How today on tasks | Q12: Yes | R12: Show_today | S12: For day view only | Z12: Project Launch | AB12: Define server | AE12: =ROW(ResourceT[[#Headers],[Sr '#]])+ROW()-12 -> 6 | AF12: Person 6 | AL12: 2024-02-15 | AM12: Presidents' Day
Z13: Project Deliver | AB13: Configure server | AE13: =ROW(ResourceT[[#Headers],[Sr '#]])+ROW()-12 -> 7 | AF13: Person 7 | AG13: 2024-04-03 | AH13: 2024-04-06 | AL13: 2024-03-17 | AM13: Saint Patrick's Day
D14: Yes / No | Z14: Project Management | AB14: Data model | AE14: =ROW(ResourceT[[#Headers],[Sr '#]])+ROW()-12 -> 8 | AF14: Person 8 | AL14: 2024-03-27 | AM14: Easter Day
D15: Yes | Z15: Project Completion | AB15: Prepare UAT | AE15: =ROW(ResourceT[[#Headers],[Sr '#]])+ROW()-12 -> 9 | AF15: Person 9 | AL15: 2024-04-15 | AM15: Tax Day
D16: No | Z16: Plan | AB16: Prepare PROD | AE16: =ROW(ResourceT[[#Headers],[Sr '#]])+ROW()-12 -> 10 | AF16: Person 10 | AL16: 2024-04-27 | AM16: Administrative Professionals Day
Z17: Governance | AB17: Prepare Plan | AE17: =ROW(ResourceT[[#Headers],[Sr '#]])+ROW()-12 -> 11 | AF17: Person 11 | AL17: 2024-05-08 | AM17: Mother's Day
Z18: Training | AB18: Task 1 | AE18: =ROW(ResourceT[[#Headers],[Sr '#]])+ROW()-12 -> 12 | AF18: Person 12 | AL18: 2024-05-30 | AM18: Memorial Day
Z19: Coding | AB19: Task 2 | AE19: =ROW(ResourceT[[#Headers],[Sr '#]])+ROW()-12 -> 13 | AF19: Person 13 | AL19: 2024-06-14 | AM19: Flag Day
Z20: Implement | AB20: Task 3 | AL20: 2024-06-19 | AM20: Father's Day
Z21: Test | AB21: Task 4 | AL21: 2024-07-04 | AM21: Independence Day
Z22: Live | AB22: Task 5 | AL22: 2024-08-05 | AM22: Labor Day | AO22: Date Changed for validation purpose
Z23: Manage | AB23: Task 6 | AL23: 2024-10-10 | AM23: Columbus Day
AB24: Task 7 | AL24: 2024-10-31 | AM24: Halloween
AL25: 2024-11-01 | AM25: Election Day
AL26: 2024-11-11 | AM26: Veteran's Day
AL27: 2024-11-24 | AM27: Thanksgiving Day
AL28: 2024-12-24 | AM28: Christmas Eve
AL29: 2024-12-25 | AM29: Christmas Day
AL30: 2024-12-31 | AM30: New Year's Eve

Sheet Help
B1: Important Notes:
B3: Good Practice: Always keep original template in a separate folder and use a copy for your working.
B4: Do not delete row 10 and 11 on Gantt Sheet as these rows will be used to copy formats to row 12 onwards. Erase only data instead.
B6: Let's Get Started
B7: Step 1 4 | C7: Get familiar with the tool first.
C8: Click the "Gantt" button (pic 1) to see the available options.
B10: Pic 1: Click on the "Gantt" tab in the Excel ribbon to access Gantt tools and navigate among sheets.
B35: Step 2 4 | C35: Go to Settings sheet to put the Company's Name and other information required for the Gantt Chart (use the links given below).
B37: Settings:
B39: Update company's name
B40: Change Preferences | F40: (See key features)
B41: Update Tasks
B42: Update Milestones
B43: Update Resources and Leave info
B44: Update Holidays
B45: Update Budget Amount
B47: Step 3 4 | C47: Once you finished with the necessary information in the Settings sheet, go to "Gantt" sheet to record the Tasks and Milestones.
B49: Gantt Sheet:
B51: Input only in Grey Columns for Project information. White Columns are calculated ones.
B57: Fields Explanation:
B58: Sr. # | C58: Serial Number. Auto calculated field.
B59: Type | C59: Select "T" for Task and "M" for Milestone from the dropdown list.
B60: Task | C60: Dropdown list, you will find the Tasks and Milestones listed in the Setting sheet based on Type selected in "Type" column.
B61: Resource | C61: Select resource from the dropdown list from the Resource Listing in the Settings sheet. Person on leave will be highlighted in red.
B62: Duration Total | C62: Total days of the Task. For Milestone, it's a sum total days for that stage.
B63: Duration Remai- ning | C63: Remaining days of the Task. For Milestone, it's a sum total remaining days for that stage.
B64: Cost | C64: Actual Cost of the Task. For Milestone, it's a sum total cost of that stage.
B65: Done | C65: Days completed. Auto calculated field.
B66: % Prog | C66: Percentage Progress of the task. Auto calculated filed.
B67: On Track | C67: Visual indicator, whether a Task or Milestone is On Track on Not. Green Tick for "On Track" and Red Cross for "Issue".
B68: D-Type | C68: Dependency Type. Three types are available.
C69: Manual: When you select Manual D-Type, Manual Date cell will get shaded and you need to put date. Use Date Picker
C70: Same: Keep D-Type empty. Same Start date as for the previous Task will be appeared in Start Date.
C71: After: Keep D-Type empty. Date after the previous Task is finished will appear as Start Date.
B72: Manual Date | C72: See D-Type. Date will turn red if it's a Holiday set in the Holidays Listing in Settings Sheet.
B73: Start | C73: Start Date of the Task or Milestone. Auto calculated field.
B74: Finish | C74: Finish Date of the Task or Milestone. Auto calculated filed.
B75: Done Until | C75: Done Until Date of the Task or Milestone. Auto calculated field.
B80: Use Date Picker to select dates in "Manual Date" Column only.
B81: Rest are auto calculated field.
B102: Step 4 4 | C102: Now you are ready to put data for the project.
C103: Before you start putting the data, remember to make a copy of the tool and keep the original template in a safe folder for future use.
C104: Do not delete row 10 and 11 as these rows will be used to copy formats to row 12 onwards. Erase data only.
C106: Data Entry:
C107: Erase data from columns B to H and columns K to L (leave calculated columns as is).
C108: Start entering data for the project in Grey Shaded columns as per sample data.
C109: If you need a row for new task, always use "Add New Row" In "Gantt Tab" available in Excel Ribbon. >
B111: Step 5 6
B113: Gantt Chart:
B115: Use Left and Right Scroll button if timeline is beyond the span of a month.
B116: Reset button will set the timeline to start date of Project.

Sheet Key Features
B1: KEY FEATURES
B3: PREFERRENCES
B4: • | C4: Unlock the hidden potential of your Gantt Chart! Dive into the Preferences menu, where you’ll find a treasure trove of controls. Imagine having the power to shape your project timeline—whether you’re a weekend warrior or prefer weekdays. Simply toggle between ‘Yes’ and ‘No,’ and watch as your Gantt chart transforms, aligning with your work rhythm.
B5: • | C5: In the Preferences section, you'll find an adjustable Start Date of the Month. This feature currently operates on a formula that intelligently extracts data from the Gantt’s 'Manual Date' column. The first date selected becomes the project's starting point, guiding the timeline for your entire endeavor.
B6: • | C6: Imagine having the power to adjust the granularity of your Gantt Chart with the ‘Days per Cell’ feature. Whether your project spans weeks or months, you’re in control. Set it to 7 for a weekly view or 30 for a monthly perspective. Watch as your Gantt Chart dynamically adapts, revealing the entire project span—all neatly displayed on a single screen.
B7: • | C7: With the ‘Show Grid’ feature, you have the power to selectively conceal those horizontal grid lines. Imagine a clean canvas where your project unfolds without distractions.
B8: • | C8: Unlock the power of precision with the ‘Show Today’ toggle in your Gantt Chart. Within Preferences, you have the ability to reveal or conceal today’s date on your timeline. Imagine having a spotlight that illuminates the present moment amidst your project’s grand narrative. It’s like capturing a snapshot of progress in real time.
B10: LISTINGS
B11: • | C11: Empower yourself with the ultimate project management toolkit! Within the Settings, you hold the reins for Tasks, Milestones, and other Listings. Imagine a canvas where you can effortlessly add or remove items from the List. It’s like curating your project’s essentials—tailored to your vision. When you step into the Gantt Chart, each selection becomes a deliberate move toward project success.
B13: PERSON ON LEAVE
B14: • | C14: Within the Resource Table, you may set leave periods for specific team members. Imagine fine-tuning availability—like adjusting a finely tuned instrument. When someone is on leave, their name on the Gantt Chart transforms into a vibrant red beacon, signaling their absence.
B16: HOLIDAYS TABLE
B17: • | C17: A standout feature of the Settings sheet is the ability to set holidays for the year. When a date on the Gantt Chart coincides with a holiday, it will automatically highlight in red, making it easier for you to choose dates that align with your schedule.
B19: GANTT CHART
B20: • | C20: Milestones: After completing a group of tasks related to a specific stage, you can add a milestone. A green flag will appear on the Gantt Chart once it's achieved, while an unfinished milestone will be marked with a red diamond.
B21: • | C21: You can enter the budgeted cost once in the Settings sheet, and then input the actual cost for each task individually in the Gantt Chart's data input area.
B22: • | C22: The D-Type column offers three types of dependencies: Manual: Allows you to select the date based on your specific needs. Same: Automatically picks the start date from the previous task. After: Calculates the date based on when the previous task is completed.
B24: SCROLL BUTTONS
B25: • | C25: Elevate your experience with the Scroll Left, Reset, and Scroll Right buttons. These intuitive controls offer precise navigation, enabling you to explore timelines that extend beyond a single month. Watch the timeline dynamically update right before your eyes—all within the same screen.
B27: DATE PICKER
B28: • | C28: The Date Picker is a handy feature that allows you to select dates effortlessly, ensuring that your chosen dates fall on weekdays.
B30: DASHBOARD
B31: • | C31: The Dashboard is the standout feature of this project management tool. It provides project performance visuals that enhance your decision-making, helping you manage your project more effectively.
